lending/lending_fUSD_20240411
["ID","MTS","AMOUNT","RATE_DAILY","PERIOD"]
[322178965,1712863919026,-1451.55,0.00029863,2]
[322178966,1712863919036,-1299.55,0.00029863,2]
[322178967,1712863919047,-1859.86,0.00029863,2]
[322178968,1712863919057,-500.0,0.00029863,2]
[322178969,1712863919066,-500.0,0.00029863,2]
[322178970,1712863919076,-500.0,0.00029863,2]
[322178971,1712863919086,-1118.53,0.00029863,2]
[322178972,1712863919097,-500.0,0.00029863,2]
[322178973,1712863919110,-500.0,0.00029863,2]
[322178974,1712863919120,-500.0,0.00029863,2]
[322178975,1712863919132,-500.0,0.00029863,2]
[322178976,1712863919142,-690.5,0.00029863,2]
[322178977,1712863919153,-820.46,0.00029863,2]
[322178978,1712863919164,-2701.17,0.00029863,2]
[322178979,1712863919175,-1556.05,0.00029863,2]
[322178980,1712863919188,-1746.83,0.00029863,2]
[322178981,1712863919200,-500.0,0.00029863,2]
[322178982,1712863919212,-500.0,0.00029863,2]
[322178983,1712863919224,-1236.35,0.00029863,2]
[322178984,1712863919235,-500.0,0.00029863,2]
[322178985,1712863919247,-1904.13,0.00029863,2]
[322178986,1712863919257,-1836.84,0.00029863,2]
[322178987,1712863919268,-500.0,0.00029863,2]
[322178988,1712863919278,-2054.27,0.00029863,2]
[322178989,1712863919289,-1139.8,0.00029863,2]
[322178990,1712863919301,-264.89,0.00029863,2]
[322178991,1712863919311,-500.0,0.00029863,2]
[322178992,1712863919322,-1133.86,0.00029863,2]
[322178993,1712863919333,-500.0,0.00029863,2]
[322178994,1712863919343,-500.0,0.00029863,2]
[322178995,1712863919354,-1519.24,0.00029863,2]
[322178996,1712863919363,-1150.3,0.00029863,2]
[322178997,1712863919375,-500.0,0.00029863,2]
[322178998,1712863919387,-37031.74,0.00029863,2]
[322178999,1712863919400,-500.0,0.00029863,2]
[322179000,1712863919413,-500.0,0.00029863,2]
[322179001,1712863919424,-2252.02,0.00029863,2]
[322179002,1712863919435,-1665.9,0.00029863,2]
[322179003,1712863919446,-2019.36,0.00029863,2]
[322179004,1712863919457,-500.0,0.00029863,2]
[322179005,1712863919468,-500.0,0.00029863,2]
[322179006,1712863919478,-500.0,0.00029863,2]
[322179007,1712863919490,-3193.7,0.00029863,2]
[322179008,1712863919502,-978.88,0.00029863,2]
[322179009,1712863919512,-805.26,0.00029863,2]
[322179010,1712863919524,-975.54,0.00029863,2]
[322179011,1712863919535,-500.0,0.00029863,2]
[322179012,1712863919545,-1224.29,0.00029863,2]
[322179013,1712863919555,-500.0,0.00029863,2]
[322179014,1712863919565,-672.73,0.00029863,2]
[322179015,1712863919575,-2055.0,0.00029863,2]
[322179016,1712863919586,-1014.43,0.00029863,2]
[322179017,1712863919597,-500.0,0.00029863,2]
[322179018,1712863919611,-638.51,0.00029863,2]
[322179019,1712863919622,-1372.0,0.00029863,2]
[322179020,1712863919633,-941.68,0.00029863,2]
[322179021,1712863919643,-3008.91,0.00029863,2]
[322179022,1712863919653,-2757.19,0.00029863,2]
[322179023,1712863919663,-500.0,0.00029863,2]
[322179024,1712863919673,-500.0,0.00029863,2]
[322179025,1712863919684,-2271.32,0.00029863,2]
[322179026,1712863919696,-687.63,0.00029863,2]
[322179027,1712863919706,-3074.05,0.00029863,2]
[322179028,1712863919716,-1265.86,0.00029863,2]
[322179029,1712863919725,-500.0,0.00029863,2]
[322179030,1712863919735,-500.0,0.00029863,2]
[322179031,1712863919744,-1938.09,0.00029863,2]
[322179032,1712863919755,-4379.49,0.00029863,2]
[322179033,1712863919765,-1283.37,0.00029863,2]
[322179034,1712863919777,-1885.35,0.00029863,2]
[322179035,1712863919787,-4346.86,0.00029863,2]
[322179036,1712863919797,-1155.02,0.00029863,2]
[322179037,1712863919807,-500.0,0.00029863,2]
[322179038,1712863919819,-53501.75,0.00029863,2]
[322179039,1712863919829,-2310.28,0.00029863,2]
[322179040,1712863919840,-1799.15,0.00029863,2]
[322179041,1712863919851,-1949.19,0.00029863,2]
[322179042,1712863919864,-1577.48,0.00029863,2]
[322179043,1712863919875,-522.11,0.00029863,2]
[322179044,1712863919887,-1254.45,0.00029863,2]
[322179045,1712863919899,-2414.38,0.00029863,2]
[322179046,1712863919910,-18239.28,0.00029863,2]
[322179047,1712863919920,-500.0,0.00029863,2]
[322179048,1712863919932,-1269.78,0.00029863,2]
[322179049,1712863919943,-907.51,0.00029863,2]
[322179050,1712863919954,-4087.64,0.00029863,2]
[322179051,1712863919966,-4035.48,0.00029863,2]
[322179052,1712863919978,-1472.75,0.00029863,2]
[322179053,1712863919991,-569.15,0.00029863,2]
[322179054,1712863920002,-579.84136143,0.00029863,2]
[322179055,1712863920013,-500.0,0.00029863,2]
[322179056,1712863920023,-3443.33,0.00029863,2]
[322179057,1712863920034,-500.0,0.00029863,2]
[322179058,1712863920045,-715.43,0.00029863,2]
[322179059,1712863920055,-1468.65,0.00029863,2]
[322179060,1712863920065,-4438.94,0.00029863,2]
[322179061,1712863920075,-500.0,0.00029863,2]
[322179062,1712863920085,-500.0,0.00029863,2]
[322179063,1712863920096,-947.32,0.00029863,2]
[322179064,1712863920108,-1460.88,0.00029863,2]
[322179065,1712863920121,-1078.14,0.00029863,2]
[322179066,1712863920132,-502.15454451,0.00029863,2]
[322179067,1712863920141,-4053.95,0.00029863,2]
[322179068,1712863920151,-742.27,0.00029863,2]
[322179069,1712863920162,-500.0,0.00029863,2]
[322179070,1712863920174,-500.0,0.00029863,2]
[322179071,1712863920186,-1767.47,0.00029863,2]
[322179072,1712863920198,-785.41,0.00029863,2]
[322179073,1712863920209,-9803.96,0.00029863,2]
[322179074,1712863920218,-1559.45,0.00029863,2]
[322179075,1712863920228,-12452.77,0.00029863,2]
[322179076,1712863920237,-500.0,0.00029863,2]
[322179077,1712863920247,-6184.21,0.00029863,2]
[322179078,1712863920256,-696.39,0.00029863,2]
[322179079,1712863920266,-500.0,0.00029863,2]
[322179080,1712863920276,-1034.64,0.00029863,2]
[322179081,1712863920287,-4243.64,0.00029863,2]
[322179082,1712863920298,-2762.12,0.00029863,2]
[322179083,1712863920307,-2525.19,0.00029863,2]
[322179084,1712863920317,-3638.97,0.00029863,2]
[322179085,1712863920326,-809.39,0.00029863,2]
[322179086,1712863920338,-6755.28,0.00029863,2]
[322179087,1712863920347,-3313.18,0.00029863,2]
[322179088,1712863920357,-3298.66,0.00029863,2]
[322179089,1712863920368,-3316.05,0.00029863,2]
[322179090,1712863920381,-2090.96,0.00029863,2]
[322179091,1712863920390,-500.0,0.00029863,2]
[322179092,1712863920401,-2581.64,0.00029863,2]
[322179093,1712863920411,-500.0,0.00029863,2]
[322179094,1712863920421,-500.0,0.00029863,2]
[322179095,1712863920431,-2873.47,0.00029863,2]
[322179096,1712863920441,-2480.74,0.00029863,2]
[322179097,1712863920452,-1598.84,0.00029863,2]
[322179098,1712863920463,-1789.61,0.00029863,2]
[322179099,1712863920472,-14422.58,0.00029863,2]
[322179100,1712863920482,-5953.17,0.00029863,2]
[322179101,1712863920492,-1652.71,0.00029863,2]
[322179102,1712863920501,-737.57,0.00029863,2]
[322179103,1712863920510,-1619.98,0.00029863,2]
[322179104,1712863920519,-2584.49,0.00029863,2]
[322179105,1712863920529,-2631.69,0.00029863,2]
[322179106,1712863920708,-8770.02549273,0.00029863,2]
[322179107,1712863921198,-784.93935206,0.00029863,2]
[322179108,1712863921212,-392.83190755,0.00029863,2]
[322179109,1712863922322,-294.28200136,0.00027295,2]
[322179110,1712863922420,-4416.45806333,0.00027295,2]
[322179111,1712863922429,-306.21014491,0.00027397,2]
[322179112,1712863922438,-1203.05369642,0.00027526,3]
[322179113,1712863922449,-500.0,0.00028219,2]
[322179114,1712863922459,-609.54,0.00028493,2]
[322179115,1712863922470,-609.54,0.00028767,2]
[322179116,1712863922481,-609.54,0.00029041,2]
[322179117,1712863922492,-609.54,0.00029315,2]
[322179118,1712863922502,-833.95324766,0.00029863,2]
[322179119,1712863922513,-2141.81,0.00029863,2]
[322179120,1712863922522,-2668.13405683,0.00029863,2]
[322179121,1712863922549,-4406.42594317,0.00029863,2]
[322179122,1712863922559,-2228.38,0.00029863,2]
[322179123,1712863922570,-547.08,0.00029863,2]
[322179124,1712863922580,-1182.41,0.00029863,2]
[322179125,1712863922590,-1306.7,0.00029863,2]
[322179126,1712863922600,-2162.99,0.00029863,2]
[322179127,1712863922615,-1593.8,0.00029863,2]
[322179128,1712863922625,-500.0,0.00029863,2]
[322179129,1712863922636,-1388.34,0.00029863,2]
[322179130,1712863922646,-4975.16,0.00029863,2]
[322179131,1712863922656,-4052.06,0.00029863,2]
[322179132,1712863922667,-3398.13,0.00029863,2]
[322179133,1712863922678,-500.0,0.00029863,2]
[322179134,1712863922689,-3587.71,0.00029863,2]
[322179135,1712863922700,-2718.79,0.00029863,2]
[322179136,1712863922710,-538.59,0.00029863,2]
[322179137,1712863922721,-500.0,0.00029863,2]
[322179138,1712863922732,-643.87,0.00029863,2]
[322179139,1712863922742,-1944.58,0.00029863,2]
[322179140,1712863922753,-3239.59,0.00029863,2]
[322179141,1712863922763,-640.82,0.00029863,2]
[322179142,1712863922775,-1379.62,0.00029863,2]
[322179143,1712863922786,-741.23,0.00029863,2]
[322179144,1712863922796,-2450.14,0.00029863,2]
[322179145,1712863922805,-500.0,0.00029863,2]
[322179146,1712863922814,-1028.85,0.00029863,2]
[322179147,1712863922824,-5944.87,0.00029863,2]
[322179148,1712863922834,-1280.64,0.00029863,2]
[322179149,1712863922844,-2132.08,0.00029863,2]
[322179150,1712863922855,-1028.51,0.00029863,2]
[322179151,1712863922866,-4562.38,0.00029863,2]
[322179152,1712863922876,-6825.13,0.00029863,2]
[322179153,1712863922886,-2368.31,0.00029863,2]
[322179154,1712863922896,-3134.26,0.00029863,2]
[322179155,1712863922907,-7074.77,0.00029863,2]
[322179156,1712863922918,-1225.72,0.00029863,2]
[322179157,1712863922927,-15352.07,0.00029863,2]
[322179158,1712863922937,-1114.66,0.00029863,2]
[322179159,1712863922946,-500.0,0.00029863,2]
[322179160,1712863922957,-1085.38,0.00029863,2]
[322179161,1712863922967,-3479.62,0.00029863,2]
[322179162,1712863922977,-3289.28,0.00029863,2]
[322179163,1712863922987,-757.5,0.00029863,2]
[322179164,1712863922998,-4609.28,0.00029863,2]
[322179165,1712863923008,-1240.17,0.00029863,2]
[322179166,1712863923018,-586.73,0.00029863,2]
[322179167,1712863923027,-776.88,0.00029863,2]
[322179168,1712863923036,-1626.2,0.00029863,2]
[322179169,1712863923046,-500.0,0.00029863,2]
[322179170,1712863923055,-20099.39,0.00029863,2]
[322179171,1712863923065,-851.06,0.00029863,2]
[322179172,1712863923075,-1308.93,0.00029863,2]
[322179173,1712863923086,-25741.65,0.00029863,2]
[322179174,1712863923096,-2048.9,0.00029863,2]
[322179175,1712863923105,-3018.25,0.00029863,2]
[322179176,1712863923117,-3107.63,0.00029863,2]
[322179177,1712863923128,-3588.33,0.00029863,2]
[322179178,1712863923138,-1051.67,0.00029863,2]
[322179179,1712863923149,-2374.36,0.00029863,2]
[322179180,1712863923160,-217.48061719,0.00029863,2]
[322179181,1712863923171,-1592.05,0.00029863,2]
[322179182,1712863923184,-505.91,0.00029863,2]
[322179183,1712863923195,-2534.14,0.00029863,2]
[322179184,1712863923206,-19452.39,0.00029863,2]
[322179185,1712863923218,-527.81,0.00029863,2]
[322179186,1712863923230,-500.0,0.00029863,2]
[322179187,1712863923241,-3020.3,0.00029863,2]
[322179188,1712863923254,-7446.86,0.00029863,2]
[322179189,1712863923264,-1495.54,0.00029863,2]
[322179190,1712863923275,-2700.11,0.00029863,2]
[322179191,1712863923285,-614.49,0.00029863,2]
[322179192,1712863923296,-1142.49,0.00029863,2]
[322179193,1712863923306,-8843.49,0.00029863,2]
[322179194,1712863923317,-682.27,0.00029863,2]
[322179195,1712863923327,-2651.73,0.00029863,2]
[322179196,1712863923338,-18815.4,0.00029863,2]
[322179197,1712863923349,-54176.01,0.00029863,2]
[322179198,1712863923358,-3784.62,0.00029863,2]
[322179199,1712863923372,-1593.95,0.00029863,2]
[322179200,1712863923384,-8906.82,0.00029863,2]
[322179201,1712863923394,-4300.73,0.00029863,2]
[322179202,1712863923405,-631.27,0.00029863,2]
[322179203,1712863923417,-500.0,0.00029863,2]
[322179204,1712863923426,-596.57,0.00029863,2]
[322179205,1712863923439,-4603.8,0.00029863,2]
[322179206,1712863923450,-2116.62,0.00029863,2]
[322179207,1712863923463,-4305.06,0.00029863,2]
[322179208,1712863923475,-821.16,0.00029863,2]
[322179209,1712863923676,-6457.93,0.00029863,2]
[322179210,1712863923688,-1483.72,0.00029863,2]
[322179211,1712863923698,-500.0,0.00029863,2]
[322179212,1712863923710,-690.55,0.00029863,2]
[322179213,1712863923720,-500.0,0.00029863,2]
[322179214,1712863923730,-812.85,0.00029863,2]
[322179215,1712863923741,-5042.1,0.00029863,2]
[322179216,1712863923751,-2960.07,0.00029863,2]
[322179217,1712863923760,-500.0,0.00029863,2]
[322179218,1712863923770,-2440.94,0.00029863,2]
[322179219,1712863923779,-5647.2,0.00029863,2]
[322179220,1712863923789,-4454.49,0.00029863,2]
[322179221,1712863923799,-500.0,0.00029863,2]
[322179222,1712863923808,-500.0,0.00029863,2]
[322179223,1712863923817,-1308.46,0.00029863,2]
[322179224,1712863923827,-500.0,0.00029863,2]
[322179225,1712863923836,-748.44,0.00029863,2]
[322179226,1712863923846,-849.93,0.00029863,2]
[322179227,1712863923855,-9726.64,0.00029863,2]
[322179228,1712863923868,-3590.29,0.00029863,2]
[322179229,1712863923878,-501.06,0.00029863,2]
[322179230,1712863923888,-3226.22,0.00029863,2]
[322179231,1712863923897,-500.0,0.00029863,2]
[322179232,1712863923907,-7238.93,0.00029863,2]
[322179233,1712863923916,-769.9,0.00029863,2]
[322179234,1712863923926,-837.7,0.00029863,2]
[322179235,1712863923936,-500.0,0.00029863,2]
[322179236,1712863923946,-866.14,0.00029863,2]
[322179237,1712863923956,-500.0,0.00029863,2]
[322179238,1712863923966,-2879.46,0.00029863,2]
[322179239,1712863923975,-3278.69,0.00029863,2]
[322179240,1712863923985,-1814.55,0.00029863,2]
[322179241,1712863923995,-34421.11,0.00029863,2]
[322179242,1712863924005,-1644.22,0.00029863,2]
[322179243,1712863924015,-500.0,0.00029863,2]
[322179244,1712863924025,-500.0,0.00029863,2]
[322179245,1712863924034,-500.0,0.00029863,2]
[322179246,1712863924044,-689.01,0.00029863,2]
[322179247,1712863924053,-984.54,0.00029863,2]
[322179248,1712863924063,-795.68,0.00029863,2]
[322179249,1712863924072,-3327.03,0.00029863,2]
[322179250,1712863924081,-500.0,0.00029863,2]
[322179251,1712863924091,-1110.72,0.00029863,2]
[322179252,1712863924100,-6971.64,0.00029863,2]
[322179253,1712863924110,-1689.02,0.00029863,2]
[322179254,1712863924122,-4131.95,0.00029863,2]
[322179255,1712863924131,-4548.52,0.00029863,2]
[322179256,1712863924141,-1399.8,0.00029863,2]
[322179257,1712863924150,-588.2,0.00029863,2]
[322179258,1712863924159,-2132.57,0.00029863,2]
[322179259,1712863924169,-2460.93,0.00029863,2]
[322179260,1712863924179,-940.49,0.00029863,2]
[322179261,1712863924189,-3570.47,0.00029863,2]
[322179262,1712863924199,-1384.5,0.00029863,2]
[322179263,1712863924209,-523.38,0.00029863,2]
[322179264,1712863924219,-5204.76,0.00029863,2]
[322179265,1712863924229,-7694.44,0.00029863,2]
[322179266,1712863924238,-500.0,0.00029863,2]
[322179267,1712863924247,-500.0,0.00029863,2]
[322179268,1712863924259,-6684.72,0.00029863,2]
[322179269,1712863924271,-526.39,0.00029863,2]
[322179270,1712863924281,-5671.76,0.00029863,2]
[322179271,1712863924292,-12079.87,0.00029863,2]
[322179272,1712863924303,-2162.52,0.00029863,2]
[322179273,1712863924312,-2445.18,0.00029863,2]
[322179274,1712863924324,-3880.76,0.00029863,2]
[322179275,1712863924335,-500.0,0.00029863,2]
[322179276,1712863924345,-730.94,0.00029863,2]
[322179277,1712863924355,-3432.24,0.00029863,2]
[322179278,1712863924369,-676.92,0.00029863,2]
[322179279,1712863924380,-500.0,0.00029863,2]
[322179280,1712863924389,-534.08,0.00029863,2]
[322179281,1712863924398,-2554.06,0.00029863,2]
[322179282,1712863924407,-2590.36,0.00029863,2]
[322179283,1712863924417,-373.04752685,0.00029863,2]
[322179284,1712863924426,-1131.02,0.00029863,2]
[322179285,1712863924435,-1707.21,0.00029863,2]
[322179286,1712863924444,-2283.61,0.00029863,2]
[322179287,1712863924453,-7140.03,0.00029863,2]
[322179288,1712863924462,-615.11,0.00029863,2]
[322179289,1712863924471,-731.31,0.00029863,2]
[322179290,1712863924481,-5613.0,0.00029863,2]
[322179291,1712863924492,-500.0,0.00029863,2]
[322179292,1712863924502,-1489.13,0.00029863,2]
[322179293,1712863924512,-500.0,0.00029863,2]
[322179294,1712863924522,-500.0,0.00029863,2]
[322179295,1712863924532,-500.0,0.00029863,2]
[322179296,1712863924542,-585.96,0.00029863,2]
[322179297,1712863924552,-2508.39,0.00029863,2]
[322179298,1712863924562,-11078.41,0.00029863,2]
[322179299,1712863924571,-500.0,0.00029863,2]
[322179300,1712863924580,-1856.58,0.00029863,2]
[322179301,1712863924589,-554.68,0.00029863,2]
[322179302,1712863924599,-2129.83,0.00029863,2]
[322179303,1712863924612,-4134.48,0.00029863,2]
[322179304,1712863924623,-4212.13,0.00029863,2]
[322179305,1712863924632,-3469.4,0.00029863,2]
[322179306,1712863924641,-1073.6,0.00029863,2]
[322179307,1712863924651,-624.72,0.00029863,2]
[322179308,1712863924660,-563.5,0.00029863,2]
[322179309,1712863924670,-8111.23,0.00029863,2]
[322179310,1712863924680,-526.02,0.00029863,2]
[322179311,1712863924689,-644.22,0.00029863,2]
[322179312,1712863924699,-153.90892363,0.00029874,2]
[322179313,1712863924708,-804.76,0.00029879,2]
[322179314,1712863924717,-804.76,0.00029879,2]
[322179315,1712863924726,-804.76,0.00029879,2]
[322179316,1712863924735,-804.76,0.00029879,2]
[322179317,1712863924744,-804.76,0.00029879,2]
[322179318,1712863924754,-804.76,0.00029879,2]
[322179319,1712863924763,-804.76,0.00029879,2]
[322179320,1712863924773,-804.76,0.00029879,2]
[322179321,1712863924782,-804.76,0.00029879,2]
[322179322,1712863924791,-804.76,0.00029879,2]
[322179323,1712863924801,-804.76,0.00029879,2]
[322179324,1712863924810,-804.76,0.00029879,2]
[322179325,1712863924819,-804.76,0.00029879,2]
[322179326,1712863924828,-804.76,0.00029879,2]
[322179327,1712863924837,-804.76,0.00029879,2]
[322179328,1712863924847,-804.76,0.00029879,2]
[322179329,1712863924858,-804.96783711,0.00029879,2]
[322179330,1712863924870,-1094930.35915181,0.0002988,2]
[322179331,1712863924906,-319.26949786,0.00027293,2]
[322179332,1712863924915,-69965.88179554,0.0002988,2]
[322179333,1712863924927,-140686.34530348,0.0002988,2]
[322179334,1712863926090,-7012.08575719,0.00027297,2]
[322179335,1712863926100,-500.0,0.00027397,2]
[322179336,1712863926110,-500.0,0.00027397,2]
[322179337,1712863926121,-500.0,0.00027397,2]
[322179338,1712863926131,-500.0,0.00027397,2]
[322179339,1712863926141,-500.0,0.00027397,2]
[322179340,1712863926151,-156.85,0.00027671,2]
[322179341,1712863926161,-500.0,0.00028493,2]
[322179342,1712863926171,-500.0,0.00028767,2]
[322179343,1712863926181,-500.0,0.00029041,2]
[322179344,1712863926192,-500.0,0.00029315,2]
[322179345,1712863926203,-609.54,0.00029589,2]
[322179346,1712863926212,-500.0,0.00029589,2]
[322179347,1712863926222,-609.54,0.00029863,2]
[322179348,1712863926231,-500.0,0.00029863,2]
[322179349,1712863926240,-1192293.07765205,0.0002988,2]
[322179350,1712863926269,-583.46661095,0.00028119,14]
[322179351,1712863926280,-3312718.06165038,0.0002988,2]
[322179352,1712863926295,-1057.98748071,0.0002988,2]
[322179354,1712864113204,10000.0,0.0003,30]
[322179356,1712864657501,367.57451251,0.00033846,30]
[322179662,1712865032509,-325.09234905,0.00020999,2]
[322179663,1712865032520,-238.76486165,0.00021,3]
[322179664,1712865032566,-111.23513835,0.00021,3]
[322179665,1712865032577,-303.71722581,0.00023,3]
[322179666,1712865032590,-96.28277419,0.00023,3]
[322179667,1712865032601,-869.98,0.0002465,2]
[322179668,1712865032612,-450.0,0.00025,3]
[322179670,1712865032621,-250.0,0.00026626,2]
[322179672,1712865032635,-238.62,0.00026691,2]
[322179673,1712865032646,-250.0,0.00026889,2]
[322179674,1712865032656,-869.98,0.00026914,2]
[322179675,1712865032666,-1000.0,0.00027,3]
[322179677,1712865032677,-1002.0,0.00027,2]
[322179679,1712865032687,-1002.0,0.00027,2]
[322179681,1712865032697,-500.0,0.00027,3]
[322179683,1712865032707,-150.0,0.00027096,2]
[322179685,1712865032717,-1000.0,0.00027135,2]
[322179687,1712865032727,-260.22,0.00027135,2]
[322179689,1712865032736,-1218.67032137,0.00027297,3]
[322179691,1712865032746,-697.46805969,0.00027297,2]
[322179734,1712865039048,-338.1250728,0.00027297,2]
[322179736,1712865039057,-179.21474828,0.00027297,2]
[322179738,1712865039067,-321.17763403,0.00027383,2]
[322179741,1712865039079,-257.11662888,0.00027383,2]
[322179743,1712865039089,-578.29426291,0.00027383,2]
[322179745,1712865039098,-578.29426291,0.00027383,2]
[322179747,1712865039108,-578.29426291,0.00027383,2]
[322179749,1712865039117,-578.29426291,0.00027383,2]
[322179751,1712865039126,-578.29426291,0.00027383,2]
[322179753,1712865039135,-578.29426291,0.00027383,2]
[322179755,1712865039144,-578.29426291,0.00027383,2]
[322179757,1712865039154,-578.29426291,0.00027383,2]
[322179759,1712865039163,-578.29426291,0.00027383,2]
[322179761,1712865039172,-578.29426291,0.00027383,2]
[322179763,1712865039182,-578.29426291,0.00027383,2]
[322179765,1712865039191,-578.29426291,0.00027383,2]
[322179767,1712865039201,-578.29426291,0.00027383,2]
[322179769,1712865039211,-578.29426291,0.00027383,2]
[322179771,1712865039221,-578.29426291,0.00027383,2]
[322179773,1712865039231,-578.29426291,0.00027383,2]
[322179775,1712865039241,-578.29426291,0.00027383,2]
[322179777,1712865039252,-578.29426291,0.00027383,2]
[322179779,1712865039261,-578.29426291,0.00027383,2]
[322179781,1712865039271,-578.29426291,0.00027383,2]
[322179783,1712865039281,-578.29426291,0.00027383,2]
[322179784,1712865039292,-578.29426291,0.00027383,2]
[322179785,1712865039302,-578.29426291,0.00027383,2]
[322179786,1712865039317,-578.29426291,0.00027383,2]
[322179787,1712865039327,-578.29426291,0.00027383,2]
[322179788,1712865039338,-578.29426291,0.00027383,2]
[322179789,1712865039348,-578.29426291,0.00027383,2]
[322179790,1712865039358,-578.29426291,0.00027383,2]
[322179791,1712865039368,-578.29426291,0.00027383,2]
[322179792,1712865039379,-164.9,0.00027384,3]
[322179794,1712865039389,-156.74977533,0.00027387,2]
[322179795,1712865039399,-185.78135859,0.00027392,2]
[322179797,1712865039409,-155.08538378,0.00027392,2]
[322179799,1712865039418,-408.15974753,0.00027392,2]
[322179801,1712865039428,-245.08709582,0.00027392,2]
[322179803,1712865039437,-263.5064568,0.00027393,2]
[322179805,1712865039446,-14995.41334822,0.00027393,2]
[322179807,1712865039456,-10639.58,0.00027393,4]
[322179809,1712865039465,-10639.58,0.00027393,4]
[322179811,1712865039474,-10639.58,0.00027393,4]
[322179813,1712865039483,-10639.58,0.00027393,4]
[322179815,1712865039493,-10639.58,0.00027393,4]
[322179817,1712865039501,-8387.09924573,0.00027393,4]
[322179819,1712865039515,-2252.48075427,0.00027393,4]
[322179821,1712865039524,-10639.58,0.00027393,4]
[322179823,1712865039534,-10639.58,0.00027393,4]
[322179825,1712865039544,-10639.58,0.00027393,4]
[322179827,1712865039553,-10639.58,0.00027393,4]
[322179829,1712865039565,-10639.58,0.00027393,4]
[322179832,1712865039574,-10639.58,0.00027393,4]
[322179834,1712865039583,-736.18889577,0.00027393,4]
[322179836,1712865039595,-7984.23406758,0.00027393,4]
[322179838,1712865039606,-567.34240132,0.00027393,4]
[322179908,1712865040302,-320.96907587,0.00027297,2]
[322179910,1712865040312,-232.26274809,0.00027393,4]
[322179911,1712865040325,-1119.55188724,0.00027393,4]
[322179913,1712865040335,-108.99575195,0.00027393,4]
[322179920,1712865040414,-3946.55535172,0.00027393,4]
[322179929,1712865040523,-6584.02889633,0.00027393,4]
[322179931,1712865040532,-10639.58,0.00027393,4]
[322179932,1712865040542,-10639.58,0.00027393,4]
[322179934,1712865040552,-10639.58,0.00027393,4]
[322179936,1712865040562,-10639.58,0.00027393,4]
[322179938,1712865040572,-5006.32513017,0.00027393,4]
[322179941,1712865040596,-5633.25486983,0.00027393,4]
[322179943,1712865040606,-1303.04513018,0.00027393,4]
[322179945,1712865040617,-338.79383807,0.00027393,4]
[322179947,1712865040633,-293.7,0.00027393,4]
[322179949,1712865040645,-405.6515568,0.00027393,4]
[322180013,1712865043595,-2119.03,0.00027393,4]
[322180014,1712865043606,-1867.11025838,0.00027393,4]
[322180015,1712865043618,-251.91974162,0.00027393,4]
[322180016,1712865043628,-2119.03,0.00027393,4]
[322180017,1712865043639,-353.66284454,0.00027395,2]
[322180018,1712865043651,-286.69789462,0.00027395,2]
[322180019,1712865043660,-1045.38886647,0.00027395,2]
[322180020,1712865043671,-500.0,0.00027397,2]
[322180021,1712865043680,-500.0,0.00027397,2]
[322180022,1712865043689,-500.0,0.00027397,2]
[322180023,1712865043699,-181.67282652,0.00027397,2]
[322180024,1712865043711,-318.32717348,0.00027397,2]
[322180025,1712865043720,-500.0,0.00027397,2]
[322180026,1712865043729,-500.0,0.00027397,2]
[322180027,1712865043738,-582.1941471,0.00027397,2]
[322180028,1712865043748,-106.58062863,0.00027397,2]
[322180049,1712865046389,-1196.2850262,0.00027393,4]